[Event "17th Asian Continental-ch Women 2018"]
[Site "Makati City"]
[Date "2018.12.16"]
[Round "7.13"]
[White "Alinasab, Mobina"]
[Black "Zhang, Xiao"]
[Result "0-1"]
[ECO "A00"]
[WhiteElo "2295"]
[BlackElo "2017"]
[PlyCount "114"]
[EventDate "2018.12.07"]
[EventType "swiss"]
[EventCountry "PHI"]
[TimeControl "40/5400+30:1800+30"]

1. e4 c6 2. Nc3 d5 3. Nf3 Nf6 4. e5 Ne4 5. Ne2 Qb6 6. d4 e6 7. Ng3 c5 8. Bd3 Nxg3 9. fxg3 h6 10. O-O c4 11. Be2 Nc6 12. c3 Bd7 13. Kh1 O-O-O 14. b3 cxb3 15. axb3 Be7 16. Bd2 g5 17. Ne1 Rdf8 18. Nd3 Kb8 19. Bh5 f6 20. exf6 Bxf6 21. Nc5 Bc8 22. Bg4 Nd8 23. Bc1 Bg7 24. Rxf8 Rxf8 25. Ba3 Qc6 26. Nd3 Rh8 27. Ne5 Qc7 28. Qe2 Nc6 29. Ng6 Rg8 30. Bh5 e5 31. dxe5 Nxe5 32. Ne7 Rd8 33. Nxc8 Qxc8 34. Qe3 b6 35. Be2 Nc6 36. Ba6 Qc7 37. Rf1 Qe5 38. Qf3 Rd7 39. Qg4 Kc7 40. Bb2 Qe4 41. Qf3 Qc2 42. Qe2 Qxb3 43. Bc1 Qa4 44. Bb5 Qe4 45. Qa2 a5 46. Ba3 Be5 47. Qb3 Qg6 48. Rb1 Rd8 49. h3 g4 50. h4 Bxg3 51. c4 Bxh4 52. cxd5 Bf2 53. g3 Qe4+ 54. Kh2 Rxd5 55. Be7 Nxe7 56. Be8 Qd3 57. Rc1+ Bc5 0-1

[Event "17th Asian Continental-ch Women 2018"]
[Site "Makati City"]
[Date "2018.12.16"]
[Round "7.14"]
[White "San Diego, Jerlyn Mae"]
[Black "Secopito, Catherine"]
[Result "0-1"]
[ECO "A00"]
[WhiteElo "1932"]
[BlackElo "2145"]
[PlyCount "124"]
[EventDate "2018.12.07"]
[EventType "swiss"]
[EventCountry "PHI"]
[TimeControl "40/5400+30:1800+30"]

1. e4 e6 2. d4 b6 3. Nc3 Bb7 4. f4 Bb4 5. Bd3 f5 6. Qe2 Qh4+ 7. g3 Qe7 8. Nf3 c5 9. O-O Bxc3 10. bxc3 fxe4 11. Bxe4 d5 12. Bd3 c4 13. Bxc4 dxc4 14. Qxc4 Ba6 15. Qa4+ Qd7 16. Qxd7+ Nxd7 17. Re1 O-O-O 18. Ng5 Nh6 19. Nxe6 Rde8 20. Bb2 Rhg8 21. Ng5 Nf6 22. h3 Nf5 23. Kf2 h6 24. Nf7 Ne4+ 25. Kg2 Nexg3 26. Nd6+ Nxd6 27. Kxg3 Nc4 28. Rxe8+ Rxe8 29. Rb1 Re2 30. a4 Bb7 31. h4 Rxc2 32. Bc1 Rg2+ 33. Kh3 Nd6 34. Rb2 Rxb2 35. Bxb2 h5 36. Bc1 a5 37. Be3 Nc4 38. Bc1 Bc6 39. f5 Bd7 40. Kg3 Bxf5 41. Kf4 g6 42. d5 Kd7 43. Kf3 Kd6 44. Ke2 Bc2 45. Bf4+ Kxd5 46. Bg5 Bxa4 47. Kd3 Bb3 48. Bf4 a4 49. Bc1 a3 50. Bxa3 Nxa3 51. c4+ Bxc4+ 52. Kc3 b5 53. Kb2 b4 54. Ka1 Kd4 55. Kb2 b3 56. Ka1 Nc2+ 57. Kb2 Nb4 58. Ka3 Kc3 59. Ka4 b2 60. Ka5 b1=Q 61. Kb6 Nd5+ 62. Kc6 Qb6+ 0-1

[Event "17th Asian Continental-ch Women 2018"]
[Site "Makati City"]
[Date "2018.12.16"]
[Round "7.15"]
[White "Bach, Ngoc Thuy Duong"]
[Black "Bernales, Christy Lamiel"]
[Result "0-1"]
[ECO "A00"]
[WhiteElo "2131"]
[BlackElo "1996"]
[PlyCount "50"]
[EventDate "2018.12.07"]
[EventType "swiss"]
[EventCountry "PHI"]
[TimeControl "40/5400+30:1800+30"]

1. d4 Nf6 2. c4 g6 3. Nc3 Bg7 4. e4 d6 5. Nf3 O-O 6. Be2 Nc6 7. O-O e5 8. d5 Ne7 9. b4 Nh5 10. g3 f5 11. Ng5 Nf6 12. f3 b6 13. Be3 Nh5 14. Bf2 a5 15. a3 axb4 16. axb4 Rxa1 17. Qxa1 Nxd5 18. Nxd5 Qxg5 19. Nxc7 fxe4 20. fxe4 Nf4 21. Qa2 Nh3+ 22. Kg2 Nxf2 23. Rxf2 Bh3+ 24. Kg1 Qc1+ 25. Bf1 Qxf1+ 0-1

[Event "17th Asian Continental-ch Women 2018"]
[Site "Makati City"]
[Date "2018.12.16"]
[Round "7.16"]
[White "San Diego, Marie Antoinette"]
[Black "Doan, Thi Van Anh"]
[Result "0-1"]
[ECO "A00"]
[WhiteElo "2111"]
[BlackElo "1950"]
[PlyCount "110"]
[EventDate "2018.12.07"]
[EventType "swiss"]
[EventCountry "PHI"]
[TimeControl "40/5400+30:1800+30"]

1. d4 d5 2. c4 dxc4 3. Nf3 c6 4. e3 b5 5. a4 e6 6. b3 b4 7. Bxc4 a5 8. O-O Nf6 9. Bb2 Be7 10. Nbd2 O-O 11. Qc2 Qb6 12. Bd3 h6 13. Rac1 Bb7 14. Ne5 Nfd7 15. Ne4 Nxe5 16. dxe5 c5 17. Nxc5 Rc8 18. Bd4 Bxc5 19. Bxc5 Qc6 20. f3 Nd7 21. Bd4 Nxe5 22. Bxe5 Qd5 23. Bh7+ Kh8 24. Qe4 Rxc1 25. Rxc1 Qd2 26. Qxb7 Qxe3+ 27. Kf1 Qxc1+ 28. Ke2 Rd8 29. Bd3 Qg5 30. f4 Qh5+ 31. Qf3 Qxh2 32. Qg4 Rg8 33. Kf2 Qh1 34. Ke2 Qh2 35. Kf2 Qh1 36. Bb2 Qh2 37. f5 Qd6 38. Qh4 exf5 39. Qh3 Rd8 40. Kg1 Qf4 41. Bf1 Rd1 42. Qf3 Qxf3 43. gxf3 Rb1 44. Bd4 Rxb3 45. Kf2 Ra3 46. Bb5 b3 47. Kg3 Ra2 48. Be5 Rd2 49. Bc3 b2 50. Bxd2 b1=Q 51. Bxa5 g5 52. Bb6 Kg7 53. Kf2 h5 54. Bd4+ Kg6 55. Be2 Qb4 0-1

[Event "17th Asian Continental-ch Women 2018"]
[Site "Makati City"]
[Date "2018.12.16"]
[Round "7.17"]
[White "Anisa, Aay Aisyah"]
[Black "Nithyalakshmi, Sivanesan"]
[Result "1-0"]
[ECO "A00"]
[WhiteElo "1985"]
[BlackElo "1942"]
[PlyCount "69"]
[EventDate "2018.12.07"]
[EventType "swiss"]
[EventCountry "PHI"]
[TimeControl "40/5400+30:1800+30"]

1. e4 d6 2. d4 g6 3. h4 Nf6 4. Nc3 Bg7 5. Be2 h5 6. Nf3 a6 7. Ng5 b5 8. Qd3 Nbd7 9. a4 bxa4 10. e5 dxe5 11. dxe5 Nxe5 12. Qxd8+ Kxd8 13. f4 Nfd7 14. fxe5 Nxe5 15. Bf4 Ke8 16. Rxa4 Bb7 17. O-O Rf8 18. Bxe5 Bxe5 19. Bd3 f5 20. Re1 Bd6 21. Rea1 Bc5+ 22. Kf1 Rf6 23. Bb5+ Kd8 24. Bc4 Kd7 25. Rd1+ Rd6 26. Be6+ Kc6 27. Rxd6+ cxd6 28. Bf7 e5 29. b4 Bd4 30. Nd5 Rd8 31. c4 Kd7 32. Bxg6 f4 33. Bxh5 Rh8 34. Bg4+ Kc6 35. h5 1-0

[Event "17th Asian Continental-ch Women 2018"]
[Site "Makati City"]
[Date "2018.12.16"]
[Round "7.18"]
[White "Mordido, Kylen Joy"]
[Black "Galas, Bernadette"]
[Result "1/2-1/2"]
[ECO "A00"]
[WhiteElo "2045"]
[BlackElo "2100"]
[PlyCount "80"]
[EventDate "2018.12.07"]
[EventType "swiss"]
[EventCountry "PHI"]
[TimeControl "40/5400+30:1800+30"]

1. c4 e6 2. d4 d5 3. cxd5 exd5 4. Nf3 Nf6 5. Nc3 c6 6. Bf4 Bd6 7. Bg3 O-O 8. e3 Ne4 9. Nxe4 dxe4 10. Bxd6 Qxd6 11. Nd2 Qe7 12. Bc4 Nd7 13. O-O Nf6 14. f3 exf3 15. Qxf3 Qb4 16. Qe2 b5 17. Bb3 Re8 18. Qd3 Be6 19. Bc2 Bc4 20. Nxc4 bxc4 21. Qe2 c5 22. d5 c3 23. b3 Qd4 24. exd4 Rxe2 25. Bd1 Rd2 26. dxc5 Rc8 27. b4 Nxd5 28. Bb3 Nxb4 29. Rxf7 Kh8 30. Rc1 c2 31. a3 Nd3 32. Rxc2 Rd1+ 33. Rf1 Rxf1+ 34. Kxf1 Nxc5 35. Bd5 g5 36. h3 Kg7 37. Ke2 Kf6 38. Ke3 Ke5 39. Bf3 Rc7 40. Rc4 h6 1/2-1/2

[Event "17th Asian Continental-ch Women 2018"]
[Site "Makati City"]
[Date "2018.12.16"]
[Round "7.19"]
[White "Mejia, Cherry Ann"]
[Black "Wang, Ying"]
[Result "1-0"]
[ECO "A00"]
[WhiteElo "1980"]
[BlackElo "1324"]
[PlyCount "95"]
[EventDate "2018.12.07"]
[EventType "swiss"]
[EventCountry "PHI"]
[TimeControl "40/5400+30:1800+30"]

1. e4 c5 2. Nc3 e6 3. f4 d5 4. Nf3 Nc6 5. Bb5 a6 6. Bxc6+ bxc6 7. O-O g6 8. d3 Bg7 9. e5 Ne7 10. b3 a5 11. Ba3 Nf5 12. Bxc5 d4 13. Ne4 Qd5 14. Qe2 Ba6 15. Qf2 O-O-O 16. a4 Bf8 17. Bb6 c5 18. Bxd8 Kxd8 19. Qd2 Qc6 20. Qxa5+ Ke7 21. Qxc5+ Qxc5 22. Nxc5 Bc8 23. a5 Ne3 24. Rfc1 Nd5 25. Nxd4 Bh6 26. g3 g5 27. c4 Nc7 28. fxg5 Bxg5 29. Re1 Na6 30. Ne4 Bh6 31. Rab1 Nb4 32. Nc5 Bd2 33. Re2 Bh6 34. Nb5 Na6 35. Nxa6 Bxa6 36. d4 Rb8 37. Nd6 Bf8 38. b4 Kd7 39. b5 Bxd6 40. exd6 Kxd6 41. Reb2 Bc8 42. a6 e5 43. dxe5+ Kc5 44. a7 Ra8 45. b6 Bb7 46. Rd1 Re8 47. Rd7 Bc6 48. b7 1-0

[Event "17th Asian Continental-ch Women 2018"]
[Site "Makati City"]
[Date "2018.12.17"]
[Round "8"]
[White "Gong, Qianyun"]
[Black "Wang, Jue"]
[Result "1-0"]
[ECO "A45"]
[WhiteElo "2312"]
[BlackElo "2367"]
[Annotator "NA"]
[PlyCount "131"]
[EventDate "2018.12.07"]
[EventType "swiss"]
[EventCountry "PHI"]
[SourceTitle "playchess.com"]
[Source "ChessBase"]
[SourceQuality "1"]
[TimeControl "40/5400+30:1800+30"]

{[%evp 8,122,7,-3,0,-6,12,8,0,8,2,0,-3,32767,32767,0,2,0,32767,-22,-29,-39,0,0,0,0,32767,32767,0,0,18,42,131,-156,29,0,54,25,54,29,166,45,54,58,292,357,277,320,302,298,347,32767,335,359,1110,1002,1054,1515,32767,32767,32767,32767,29990,1475,29991,175,185,176,190,203,184,214,200,203,223,213,240,309,274,32767,32767,32767,306,354,382,378,401,442,527,454,339,277,32767,32767,421,265,431,454,413,466,482,599,539,754,563,699,735,1608,5137,29971,5257,29973,29976,29981,29982,29983,29983]} 1. d4 {[%emt 0:00:00]} Nf6 {[%emt 0:04:44]} 2. Bf4 {[%emt 0:00:00]} g6 {[%emt 0:00:07]} 3. Nc3 {[%emt 0:00:00]} d5 {[%emt 0:00:06] A45: Trompowsky Attack} (3... c5 4. dxc5 Qa5 5. a3 Qxc5 6. e4 Bg7 7. Nf3 d6 8. h3 O-O 9. Qd2 b6 10. O-O-O Bb7 11. Be3 {1-0 (48) Nabaty,T (2692)-Almasi,Z (2702) Batumi 2018}) 4. e3 {[%emt 0:00:04]} Bg7 {[%emt 0:00:04]} 5. h4 {[%emt 0:00:10]} c6 {[%emt 0:00:04]} 6. Be2 {[%emt 0:00:34] LiveBook: 40 Games} Qb6 {[%emt 0:01:34]} 7. b3 $146 {[%emt 0:03:43]} ({Predecessor:} 7. a3 h6 8. Nf3 Bg4 9. Qd2 Ne4 10. Nxe4 dxe4 11. Ne5 Bxe2 12. Qxe2 {½-½ (35) Berzinsh,R (2434)-Neiksans,A (2586) Olaine 2017}) 7... h5 {[%emt 0:06:21]} 8. Nf3 {[%emt 0:07:31]} Bg4 {[%emt 0:00:23]} 9. Ne5 {[%emt 0:00:32]} Bxe2 {[%emt 0:00:04]} 10. Qxe2 {[%emt 0:00:11]} Nbd7 {[%emt 0:03:25]} 11. O-O-O {[%emt 0:05:17]} e6 {[%emt 0:11:04]} 12. f3 {[%emt 0:08:39]} Rc8 {[%emt 0:22:37]} 13. g4 {[%emt 0:11:36]} hxg4 {[%emt 0:03:51]} 14. fxg4 {[%emt 0:00:16]} c5 {[%emt 0:00:29]} 15. g5 {[%emt 0:07:26]} Nh5 {[%emt 0:00:38]} 16. Na4 {[%emt 0:15:47]} Qb4 {[%emt 0:09:14]} 17. Nxd7 {[%emt 0:00:25]} Kxd7 {[%emt 0:04:05]} 18. Rhf1 {[%emt 0:09:42]} c4 {[%emt 0:08:30]} 19. Kb1 {[%emt 0:04:00]} b5 {[%emt 0:06:48]} (19... Rhd8 $11 {keeps the balance.}) 20. Nb2 $2 {[%emt 0:01:11] [#]} (20. c3 $16 {is necessary to keep the advantage.} Qa5 21. Nc5+ Rxc5 22. b4 {[%mdl 64] Double Attack}) 20... Qc3 $2 {[%emt 0:01:10]} (20... f5 $1 $17 21. gxf6 Nxf6) 21. Bh2 {[%emt 0:10:16]} Rhf8 {[%emt 0:04:13]} 22. Rf3 {[%emt 0:08:53]} Qb4 {[%emt 0:05:49]} 23. e4 {[%emt 0:00:54]} Rce8 {[%emt 0:00:17]} (23... f5 $1 $14 24. a3 Qa5 25. exf5 exf5) 24. Re3 {[%emt 0:00:58]} (24. Qg2 $18 dxe4 25. Rh3) 24... f5 $1 {[%emt 0:01:12]} 25. c3 {[%emt 0:00:58]} Qa3 $2 {[%emt 0:01:33]} (25... Qa5 $1 $14) 26. exd5 {[%emt 0:00:05]} ({Weaker is} 26. bxc4 dxc4 27. exf5 Rxf5 $16) 26... exd5 {[%emt 0:00:03]} 27. Re1 {[%emt 0:00:08]} Re4 {[%emt 0:00:25]} 28. bxc4 {[%emt 0:01:44]} ({Not} 28. Rxe4 fxe4 29. Qg4+ Ke7 $11) 28... bxc4 {[%emt 0:03:42] [#]} 29. Nxc4 $1 {[%emt 0:00:07]} Qa4 {[%emt 0:00:38]} 30. Nd2 {[%emt 0:01:18]} ({Weaker is} 30. Rxe4 dxe4 31. Nd2 Re8 $16) 30... Rc8 $2 {[%emt 0:01:18]} (30... Rfe8 31. Nxe4 dxe4) 31. Rxe4 {[%emt 0:03:05]} dxe4 {[%emt 0:00:28] [#]} 32. Nxe4 $1 {[%emt 0:00:00]} fxe4 {[%emt 0:00:10]} 33. Qxe4 {[%emt 0:00:00]} Qb5+ {[%emt 0:00:04]} 34. Ka1 {[%emt 0:00:00]} Bf8 {[%emt 0:00:09]} 35. Qe6+ {[%emt 0:00:17]} Kd8 {[%emt 0:00:01]} 36. Qxg6 $2 {[%emt 0:00:23]} (36. Qf7 {mates} Ng3 37. Bxg3 Bd6 38. Bxd6 Rxc3 39. Qg8+ Kd7 40. Re7+ Kc6 41. Rc7+ Kb6 42. Qb8+ {[%mdl 64] Double Attack} Ka5 43. Rxa7+ Qa6 44. Qb4#) 36... Qc6 {[%emt 0:01:49]} 37. Qxc6 {[%emt 0:00:28]} Rxc6 {[%emt 0:00:01]} 38. Kb2 {[%emt 0:00:09]} Rb6+ {[%emt 0:01:00]} 39. Kc2 {[%emt 0:00:21]} Ra6 {[%emt 0:00:07]} 40. Kb3 {[%emt 0:00:00]} Rb6+ {[%emt 0:00:00]} 41. Kc4 {[%emt 0:04:16]} Kd7 {[%emt 0:03:15]} 42. Rf1 {[%emt 0:02:14]} Ke8 {[%emt 0:06:01]} 43. Be5 {[%emt 0:04:07]} Rc6+ {[%emt 0:03:31]} 44. Kd3 {[%emt 0:00:28]} Bg7 {[%emt 0:00:38]} 45. Bxg7 {[%emt 0:02:07]} Nxg7 {[%emt 0:00:50]} 46. Rf2 {[%emt 0:04:11]} Ke7 {[%emt 0:04:49]} 47. c4 {[%emt 0:01:05]} Rc8 {[%emt 0:05:50]} 48. g6 {[%emt 0:03:24]} Ke6 {[%emt 0:02:25]} 49. Rf7 {[%emt 0:00:53]} Nh5 {[%emt 0:00:04]} 50. c5 {[%emt 0:03:22]} Rg8 {[%emt 0:03:38]} 51. Rxa7 {[%emt 0:00:24] Decoy} Nf4+ {[%emt 0:00:05]} 52. Kc4 {[%emt 0:01:09]} Nxg6 {[%emt 0:00:16]} 53. d5+ {[%emt 0:02:18]} Ke5 {[%emt 0:01:17]} 54. h5 {[%emt 0:01:11]} Nf4 {[%emt 0:00:23]} 55. Re7+ {[%emt 0:01:09]} Kf6 {[%emt 0:00:05]} 56. d6 {[%emt 0:00:40]} Rc8 {[%emt 0:04:09]} 57. d7 {[%emt 0:02:40]} Rxc5+ {[%emt 0:02:04]} 58. Kxc5 {[%emt 0:00:04]} Kxe7 {[%emt 0:00:02]} 59. Kc6 {[%emt 0:00:07]} Ne6 {[%emt 0:00:06]} 60. h6 {[%emt 0:00:17]} Nd8+ {[%emt 0:01:43]} 61. Kc7 {[%emt 0:00:06]} Ne6+ {[%emt 0:00:30]} 62. Kc8 {[%emt 0:00:03]} Kf7 {[%emt 0:00:30]} 63. d8=Q {[%emt 0:00:10]} Nxd8 {[%emt 0:00:03]} 64. Kxd8 {[%emt 0:00:04]} Kg6 {[%emt 0:00:07]} 65. a4 {[%emt 0:00:03]} Kxh6 {[%emt 0:00:03]} 66. a5 {[%emt 0:00:02]} 1-0

[Event "17th Asian Continental-ch Women 2018"]
[Site "Makati City"]
[Date "2018.12.17"]
[Round "8.4"]
[White "Guo, Qi"]
[Black "Li, Yunshan"]
[Result "0-1"]
[ECO "A00"]
[WhiteElo "2368"]
[BlackElo "2196"]
[PlyCount "138"]
[EventDate "2018.12.07"]
[EventType "swiss"]
[EventCountry "PHI"]
[TimeControl "40/5400+30:1800+30"]

1. d4 d5 2. c4 dxc4 3. Nf3 Nf6 4. e3 c5 5. Bxc4 e6 6. O-O Nc6 7. Qe2 a6 8. Rd1 b5 9. Bb3 c4 10. Bc2 Nb4 11. b3 Nxc2 12. Qxc2 cxb3 13. axb3 Bb7 14. Nbd2 Bd6 15. e4 Rc8 16. Qd3 Bb4 17. Bb2 O-O 18. Rac1 Qe7 19. h3 h6 20. Re1 Rfd8 21. Qb1 Nh5 22. Qd3 Nf6 23. Qe3 Nd7 24. Red1 Nf6 25. Kh1 a5 26. Qd3 a4 27. bxa4 bxa4 28. Rxc8 Rxc8 29. Ra1 Ra8 30. Rc1 Ba6 31. Qe3 a3 32. Ba1 Rc8 33. Rxc8+ Bxc8 34. Qf4 Qb7 35. d5 Bxd2 36. Nxd2 a2 37. Kh2 exd5 38. exd5 Nxd5 39. Qa4 Qc7+ 40. g3 Qc5 41. Bd4 Qb4 42. Qe8+ Qf8 43. Qa4 Nb4 44. Ne4 Qe7 45. Nc5 Qe1 46. Qa8 Qe8 47. Bc3 Qc6 48. Qxc6 Nxc6 49. Nb3 Be6 50. Na1 g5 51. g4 Ne7 52. Kg3 Ng6 53. Bf6 Bd5 54. f3 Kh7 55. Nc2 Bc4 56. Na1 Be2 57. Nc2 Bd1 58. Na1 Nf4 59. h4 Nd5 60. Bd8 gxh4+ 61. Bxh4 f6 62. Kg2 Kg6 63. Be1 Nf4+ 64. Kg3 Ne2+ 65. Kf2 Nd4 66. f4 Bxg4 67. Bc3 Ne2 68. Bb2 Nxf4 69. Kg3 Nd3 0-1

[Event "17th Asian Continental-ch Women 2018"]
[Site "Makati City"]
[Date "2018.12.17"]
[Round "8.5"]
[White "Aulia, Medina Warda"]
[Black "Munkhzul, Turmunkh"]
[Result "0-1"]
[ECO "A00"]
[WhiteElo "2366"]
[BlackElo "2255"]
[PlyCount "162"]
[EventDate "2018.12.07"]
[EventType "swiss"]
[EventCountry "PHI"]
[TimeControl "40/5400+30:1800+30"]

1. e4 e5 2. Nf3 Nc6 3. Bb5 a6 4. Ba4 Nf6 5. O-O Nxe4 6. Re1 Nc5 7. Bxc6 dxc6 8. Nxe5 Ne6 9. d4 Be7 10. c3 O-O 11. a4 c5 12. d5 f6 13. Nc4 Ng5 14. Bf4 Nf7 15. Nbd2 Re8 16. Ne4 Bf5 17. Ng3 Bg6 18. Qf3 Nd6 19. Bxd6 Bxd6 20. Nf5 Bf8 21. h4 Rxe1+ 22. Rxe1 Qd7 23. Nfe3 Re8 24. b3 Be4 25. Qd1 Bxd5 26. Re2 Be6 27. Rd2 Qf7 28. a5 f5 29. Qf3 c6 30. g3 Qf6 31. Rd3 Be7 32. Qf4 h6 33. Qc7 f4 34. Qxf4 Qxf4 35. gxf4 Bxh4 36. f5 Bxc4 37. Nxc4 Rd8 38. Re3 Bg5 39. Re6 Rd7 40. Nd6 Be7 41. Nc4 Bf6 42. Re3 Kh7 43. f4 h5 44. Kg2 Rd1 45. Ne5 Rd8 46. c4 Kg8 47. Kf3 Bxe5 48. fxe5 Rd4 49. Re1 Kf7 50. Re3 Ke7 51. e6 h4 52. Kg2 Rf4 53. Re5 g6 54. fxg6 Rg4+ 55. Kh2 Rxg6 56. Rh5 Rg7 57. Rh6 Kd6 58. Kh3 Rg3+ 59. Kxh4 Rxb3 60. Kg5 Rf3 61. Rh7 Kxe6 62. Rxb7 Ke5 63. Ra7 Rg3+ 64. Kh4 Ra3 65. Rxa6 Kd4 66. Kg4 Kxc4 67. Kf4 Kb5 68. Rb6+ Kxa5 69. Rxc6 Kb5 70. Rc8 Rd3 71. Ke4 Rd7 72. Rb8+ Kc4 73. Ke3 Kc3 74. Ke4 c4 75. Rc8 Kb3 76. Rb8+ Kc2 77. Rh8 c3 78. Rh2+ Kb1 79. Rh1+ Kb2 80. Rh8 c2 81. Rb8+ Kc1 0-1

[Event "17th Asian Continental-ch Women 2018"]
[Site "Makati City"]
[Date "2018.12.17"]
[Round "8.6"]
[White "Nguyen, Thi Thanh An"]
[Black "Li, Xueyi"]
[Result "0-1"]
[ECO "A00"]
[WhiteElo "2262"]
[BlackElo "2187"]
[PlyCount "80"]
[EventDate "2018.12.07"]
[EventType "swiss"]
[EventCountry "PHI"]
[TimeControl "40/5400+30:1800+30"]

1. d4 d5 2. c4 c6 3. Nc3 e6 4. e4 dxe4 5. Nxe4 Bb4+ 6. Nc3 c5 7. Nf3 Ne7 8. a3 Ba5 9. Be2 cxd4 10. Nxd4 O-O 11. b4 Bc7 12. Be3 a6 13. O-O Ng6 14. g3 f5 15. f4 e5 16. Nc2 Nd7 17. Nd5 exf4 18. gxf4 Nf6 19. Qe1 Nxd5 20. Rd1 Ngxf4 21. Bxf4 Bxf4 22. cxd5 Bd6 23. Nd4 Rf6 24. Rf2 Bd7 25. Kh1 Kh8 26. Rg2 Qe7 27. Qf2 a5 28. Ne6 Bxe6 29. dxe6 axb4 30. axb4 Rxe6 31. Bc4 Rh6 32. b5 Bxh2 33. Rxh2 Qe4+ 34. Qg2 Rxh2+ 35. Kxh2 Qxc4 36. Qf2 h6 37. b6 Ra2 38. Rd2 Rxd2 39. Qxd2 Qh4+ 40. Kg2 Qg5+ 0-1

[Event "17th Asian Continental-ch Women 2018"]
[Site "Makati City"]
[Date "2018.12.17"]
[Round "8.7"]
[White "Ning, Kaiyu"]
[Black "Gu, Tianlu"]
[Result "1-0"]
[ECO "A00"]
[WhiteElo "2247"]
[BlackElo "2231"]
[PlyCount "135"]
[EventDate "2018.12.07"]
[EventType "swiss"]
[EventCountry "PHI"]
[TimeControl "40/5400+30:1800+30"]

1. d4 Nf6 2. c4 e6 3. Nf3 d5 4. Bg5 h6 5. Bxf6 Qxf6 6. e3 Nd7 7. Nbd2 c5 8. cxd5 exd5 9. Be2 Be7 10. O-O O-O 11. Rc1 Rd8 12. dxc5 Qxb2 13. Nb3 Qxa2 14. Nfd4 Ne5 15. Rc2 Qa4 16. Bb5 Qb4 17. Qa1 Nc4 18. c6 Na3 19. cxb7 Bxb7 20. Rc7 Rab8 21. Bd3 Bf8 22. Qd1 Qb6 23. Rc1 Rbc8 24. Qg4 Nc4 25. Ra1 Ne5 26. Qf5 Nxd3 27. Qxd3 Bb4 28. Rfb1 Rc3 29. Qe2 Rdc8 30. h4 Re8 31. Qg4 Bc8 32. Qh5 Be6 33. Nxe6 Rxe6 34. Qxd5 Rc8 35. Nd4 Rd6 36. Qe4 a5 37. Nf5 Re6 38. Qg4 g6 39. Ne7+ Rxe7 40. Qxc8+ Kg7 41. Rd1 Rc7 42. Qd8 Be7 43. Qe8 Bxh4 44. Qe5+ Bf6 45. Qxa5 Qc6 46. Rab1 Qc2 47. Qd2 Qf5 48. Qd3 Qc8 49. Rb6 Rc2 50. Rb8 Qc7 51. Rb7 Qxb7 52. Qxc2 h5 53. Rb1 Qd5 54. Qb3 Qf5 55. Rd1 h4 56. Rd5 Qg4 57. Qd1 Qe4 58. Qf3 Qb1+ 59. Rd1 Qb2 60. Rd7 Qb1+ 61. Qd1 Qe4 62. Qd5 Qe8 63. Kh2 Be5+ 64. f4 Bb2 65. Kh1 Bc1 66. Qd4+ Kh7 67. Rd8 Bxe3 68. Qf6 1-0

[Event "17th Asian Continental-ch Women 2018"]
[Site "Makati City"]
[Date "2018.12.17"]
[Round "8.8"]
[White "Karenza, Dita"]
[Black "Frayna, Janelle Mae"]
[Result "1/2-1/2"]
[ECO "A00"]
[WhiteElo "1944"]
[BlackElo "2228"]
[PlyCount "120"]
[EventDate "2018.12.07"]
[EventType "swiss"]
[EventCountry "PHI"]
[TimeControl "40/5400+30:1800+30"]

1. e4 g6 2. d4 Bg7 3. Nc3 d6 4. Be3 a6 5. f4 b5 6. a3 Nd7 7. e5 Bb7 8. Nf3 e6 9. Bd3 Ne7 10. Ne4 Nf5 11. Bf2 h5 12. Neg5 Nb6 13. Rg1 Qd7 14. h3 Nc4 15. Qc1 Nb6 16. b3 f6 17. Ne4 fxe5 18. dxe5 Bxe4 19. Bxe4 d5 20. Bd3 Qc6 21. Qd2 Bf8 22. g4 hxg4 23. hxg4 Ne7 24. O-O-O Rg8 25. Bd4 O-O-O 26. Bb2 Qe8 27. Ng5 Nc6 28. Kb1 Bh6 29. Nh7 Qf7 30. Nf6 Rh8 31. Qf2 Kb7 32. f5 gxf5 33. gxf5 exf5 34. Bxf5 Qe7 35. Qg3 Ka7 36. e6 d4 37. Nd7 Qd6 38. Qxd6 cxd6 39. Rg6 Be3 40. Nf6 Kb8 41. Ng4 Nd5 42. Be4 Nde7 43. Rg7 d5 44. Bh7 Rdf8 45. Rf7 Nc8 46. Rdf1 Re8 47. Bf5 Nd6 48. Nf6 Re7 49. Rxe7 Nxe7 50. Nd7+ Kc7 51. Bd3 Rg8 52. a4 Rg1 53. Rxg1 Bxg1 54. axb5 axb5 55. Ba3 Nec8 56. Nf6 Kc6 57. Bf1 Be3 58. Bg2 Ne7 59. Bb4 Bg5 60. Nd7 Ne4 1/2-1/2

[Event "17th Asian Continental-ch Women 2018"]
[Site "Makati City"]
[Date "2018.12.17"]
[Round "8.9"]
[White "Mendoza, Shania Mae"]
[Black "Nakhbayeva, Guliskhan"]
[Result "0-1"]
[ECO "A00"]
[WhiteElo "2165"]
[BlackElo "2371"]
[PlyCount "80"]
[EventDate "2018.12.07"]
[EventType "swiss"]
[EventCountry "PHI"]
[TimeControl "40/5400+30:1800+30"]

1. Nf3 Nf6 2. c4 e6 3. g3 d5 4. Bg2 dxc4 5. Qa4+ Nbd7 6. Qxc4 a6 7. Qb3 c5 8. a4 Rb8 9. d3 Bd6 10. O-O O-O 11. Qc2 b6 12. b3 Bb7 13. Bb2 Qe7 14. Nbd2 e5 15. e4 Rbd8 16. Nc4 Bc7 17. Qc3 Rfe8 18. Nh4 Nb8 19. f4 Nc6 20. Nf5 Qd7 21. fxe5 Nxe5 22. Qc1 Nfg4 23. Bh3 Qc6 24. Bxg4 Nxg4 25. Qg5 Qg6 26. Ne7+ Rxe7 27. Qxe7 Rc8 28. Qh4 b5 29. Rf5 Bd8 30. Qh3 bxc4 31. Raf1 f6 32. R5f4 Ne3 33. Re1 Nc2 34. Rd1 cxb3 35. Qe6+ Qf7 36. Qg4 Ne3 37. Qe2 Nxd1 38. Qxd1 c4 39. dxc4 Bb6+ 40. Kg2 Qxc4 0-1

[Event "17th Asian Continental-ch Women 2018"]
[Site "Makati City"]
[Date "2018.12.17"]
[Round "8.10"]
[White "Hoang, Thi Bao Tram"]
[Black "Fronda, Jan Jodilyn"]
[Result "0-1"]
[ECO "A00"]
[WhiteElo "2314"]
[BlackElo "2139"]
[PlyCount "98"]
[EventDate "2018.12.07"]
[EventType "swiss"]
[EventCountry "PHI"]
[TimeControl "40/5400+30:1800+30"]

1. Nf3 c5 2. g3 b6 3. Bg2 Bb7 4. c4 Nf6 5. O-O g6 6. Nc3 Bg7 7. d3 O-O 8. e4 d6 9. a3 Nbd7 10. Rb1 Rc8 11. h3 Ne8 12. Bd2 Nc7 13. b4 Ne6 14. Kh2 a6 15. Ne1 cxb4 16. Rxb4 Bc6 17. f4 Nd4 18. Ne2 Nxe2 19. Qxe2 b5 20. cxb5 Bxb5 21. a4 Bc6 22. d4 a5 23. Rc4 Qb6 24. Qe3 Bb7 25. Rxc8 Rxc8 26. Nf3 Rc4 27. Ra1 Rxd4 28. Nxd4 Bxd4 29. Qe1 Bxa1 30. Qxa1 Bxe4 31. Qe1 Bxg2 32. Kxg2 e5 33. h4 Qc6+ 34. Kh3 Qf3 35. Qc1 Nf6 36. fxe5 Qg4+ 37. Kh2 dxe5 38. Bxa5 Qxa4 39. Bd2 Qg4 40. Qe1 Qe4 41. Qc1 Ng4+ 42. Kh3 h5 43. Qg1 Qe2 44. Ba5 e4 45. Bb6 e3 46. Ba5 Nf2+ 47. Kg2 Nd3+ 48. Kh3 Qf3 49. Kh2 e2 0-1

[Event "17th Asian Continental-ch Women 2018"]
[Site "Makati City"]
[Date "2018.12.17"]
[Round "8.11"]
[White "Secopito, Catherine"]
[Black "Nandhidhaa, P V"]
[Result "0-1"]
[ECO "A00"]
[WhiteElo "2145"]
[BlackElo "2267"]
[PlyCount "82"]
[EventDate "2018.12.07"]
[EventType "swiss"]
[EventCountry "PHI"]
[TimeControl "40/5400+30:1800+30"]

1. d4 Nf6 2. Nf3 d5 3. e3 c5 4. Bd3 Nc6 5. O-O cxd4 6. exd4 g6 7. Re1 Bg7 8. h3 Qc7 9. Nc3 O-O 10. Bg5 Rd8 11. Qd2 a6 12. Bf4 Qa5 13. a3 b5 14. Ne5 Nxe5 15. dxe5 Ne8 16. b4 Qb6 17. a4 d4 18. Ne4 bxa4 19. Rxa4 Bd7 20. Ra5 Nc7 21. Nc5 Bb5 22. Bxb5 Nxb5 23. e6 f5 24. Qd3 Nc3 25. Qc4 Nd5 26. Bd2 Nc7 27. Rea1 Qc6 28. Qb3 Rd5 29. Qf3 Be5 30. R1a3 Bd6 31. Nd3 Qc4 32. Rxd5 Nxd5 33. g3 Rb8 34. Ra5 Nxb4 35. Nxb4 Bxb4 36. Bxb4 Rxb4 37. Qa8+ Kg7 38. Qxa6 Rb1+ 39. Kg2 Qxc2 40. Qa8 Qd1 41. g4 f4 0-1